[Event "XIX Sant Marti Open 2017"]
[Site "Barcelona"]
[Date "2017.07.16"]
[Round "3.10"]
[White "Buchenau, Frank"]
[Black "Perez Mitjans, Orelvis"]
[Result "0-1"]
[ECO "B27"]
[WhiteElo "2279"]
[BlackElo "2407"]
[Annotator "NA"]
[PlyCount "84"]
[EventDate "2017.??.??"]
[EventType "swiss"]
[EventCountry "ESP"]
[SourceTitle "playchess.com"]
[Source "ChessBase"]
[SourceQuality "1"]
[TimeControl "5400+30"]

1. e4 c5 2. Nf3 g6 3. d4 cxd4 4. Qxd4 Nf6 5. Nc3 Nc6 6. Qa4 d6 7. e5 dxe5 8. Nxe5 Bd7 9. Nxd7 Qxd7 10. Be3 Bg7 11. Be2 O-O 12. O-O a6 13. Rad1 Qf5 14. Rd2 b5 15. Qf4 Qe6 16. Rfd1 Rac8 17. a4 b4 18. Bc4 Qe5 19. Ne2 Qa5 20. b3 Ne5 21. Bb6 Qxb6 22. Qxe5 Ng4 23. Qf4 h5 24. h3 Be5 25. Qf3 Bh2+ 26. Kh1 Ne5 27. Qe4 Nxc4 28. bxc4 Bd6 29. Nf4 Bxf4 30. Qxf4 Qc6 31. Qe5 e6 32. Rd4 Qxa4 33. R1d2 Qa1+ 34. Kh2 Rxc4 35. f4 Rxd4 36. Rxd4 a5 37. Qc5 h4 38. f5 exf5 39. Rxh4 Qf6 40. Rc4 Re8 41. Qxa5 Qd6+ 42. Kg1 Qg3 0-1

[Event "XIX Sant Marti Open 2017"]
[Site "Barcelona"]
[Date "2017.07.16"]
[Round "4"]
[White "Perez Mitjans, Orelvis"]
[Black "Iniyan, P."]
[Result "1-0"]
[ECO "C47"]
[WhiteElo "2407"]
[BlackElo "2380"]
[Annotator "ChessBase"]
[PlyCount "67"]
[EventDate "2017.??.??"]
[EventType "swiss"]
[EventCountry "ESP"]
[SourceTitle "playchess.com"]
[Source "ChessBase"]
[SourceQuality "1"]
[TimeControl "5400+30"]

1. e4 {[%emt 0:34:21]} e5 {[%emt 0:01:11]} 2. Nf3 {[%emt 0:00:23]} Nf6 {[%emt 0:00:05]} 3. Nc3 {[%emt 0:00:16]} Nc6 {[%emt 0:00:06]} 4. g3 {[%emt 0:00:20]} Bc5 {[%emt 0:00:13]} 5. Bg2 {[%emt 0:00:05]} d6 {[%emt 0:00:19]} 6. O-O {[%emt 0:00:27]} O-O {[%emt 0:00:06]} 7. d3 {[%emt 0:00:20]} a6 {[%emt 0:00:26]} 8. Be3 Bxe3 {[%emt 0:02:13]} 9. fxe3 {[%emt 0:00:55]} h6 {[%emt 0:01:04]} 10. Nh4 {[%emt 0:02:09]} g6 {[%emt 0:03:41]} 11. Nd5 Nxd5 {[%emt 0:03:51]} 12. exd5 {[%emt 0:14:20]} Ne7 {[%emt 0:00:16]} 13. e4 {[%emt 0:00:18]} c6 {[%emt 0:00:36]} 14. Qd2 g5 {[%emt 0:05:31]} 15. Nf3 {[%emt 0:06:13]} cxd5 {[%emt 0:00:06]} 16. Nxg5 {[%emt 0:09:19]} f5 {[%emt 0:44:43]} 17. Nh3 {[%emt 0:06:00]} Kg7 {[%emt 0:00:29]} 18. exd5 {[%emt 0:00:48]} Qb6+ {[%emt 0:01:52]} 19. d4 {[%emt 0:02:41]} f4 {[%emt 0:00:27]} 20. gxf4 {[%emt 0:05:03]} exd4 {[%emt 0:00:15]} 21. f5 {[%emt 0:02:09]} Bxf5 {[%emt 0:04:45]} 22. Nf4 {[%emt 0:00:13]} d3+ {[%emt 0:06:31]} 23. Kh1 {[%emt 0:00:07]} dxc2 {[%emt 0:00:07]} 24. Rae1 {[%emt 0:02:56]} Qc7 {[%emt 0:02:09]} 25. Be4 Kh7 {[%emt 0:08:38]} 26. Bxc2 {[%emt 0:08:13]} Rf7 {[%emt 0:02:20]} 27. Bxf5+ {[%emt 0:00:54]} Nxf5 {[%emt 0:01:57]} 28. Ne6 {[%emt 0:01:04]} Qc4 {[%emt 0:00:33]} 29. Rf4 {[%emt 0:00:13]} Qb5 {[%emt 0:00:05]} 30. Ref1 {[%emt 0:01:10]} Rg8 {[%emt 0:01:19]} 31. a4 {[%emt 0:00:59]} Qb6 {[%emt 0:00:04]} 32. Rxf5 {[%emt 0:01:03]} Rxf5 33. Qd3 Qe3 {[%emt 0:00:53]} 34. Qxf5+ {[%emt 0:00:03]} 1-0

[Event "XIX Sant Marti Open 2017"]
[Site "Barcelona"]
[Date "2017.07.17"]
[Round "5"]
[White "Quirhuayo Chumbe, German Gonzalo"]
[Black "Vassallo Barroche, Mauricio"]
[Result "1-0"]
[ECO "C77"]
[WhiteElo "2376"]
[BlackElo "2376"]
[Annotator "NA"]
[PlyCount "83"]
[EventDate "2017.??.??"]
[EventType "swiss"]
[EventCountry "ESP"]
[SourceTitle "playchess.com"]
[Source "ChessBase"]
[SourceQuality "1"]
[TimeControl "5400+30"]

1. e4 {[%emt 0:29:12]} e5 {[%emt 0:00:36]} 2. Nf3 {[%emt 0:00:06]} Nc6 {[%emt 0:00:04]} 3. Bb5 {[%emt 0:00:07]} a6 {[%emt 0:02:40]} 4. Ba4 {[%emt 0:00:07]} Nf6 {[%emt 0:00:29]} 5. d3 {[%emt 0:00:09]} d6 {[%emt 0:00:18]} 6. c3 {[%emt 0:00:16]} Bd7 {[%emt 0:03:24]} 7. O-O {[%emt 0:00:32]} g6 {[%emt 0:01:26]} 8. Nbd2 {[%emt 0:01:44]} Bg7 {[%emt 0:00:05]} 9. Re1 {[%emt 0:00:46]} O-O {[%emt 0:02:11]} 10. Nf1 {[%emt 0:00:09]} Nh5 {[%emt 0:08:37] C77: Ruy Lopez: 3...a6 4 Ba4 Nf6, unusual lines} (10... h6 11. Ng3 Qe8 12. h3 Nd8 13. Bb3 c5 14. d4 b5 15. dxe5 dxe5 16. Qd6 c4 17. Bc2 Nh7 18. b3 {½-½ (40) Stefansson,H (2602)-Ipatov,A (2624) Reykjavik 2015}) 11. Ng3 {[%emt 0:03:38]} Nxg3 {[%emt 0:05:13]} 12. hxg3 {[%emt 0:02:10]} Bg4 $146 {[%emt 0:02:40]} ({Predecessor:} 12... Ne7 13. Bxd7 Qxd7 14. d4 Rad8 15. dxe5 dxe5 16. Qxd7 Rxd7 {½-½ (16) Voloshin,L (2449)-Klovans,J (2428) Mlada Boleslav 2008}) 13. Be3 {[%emt 0:02:15]} b5 {[%emt 0:05:58]} 14. Bc2 {[%emt 0:05:49]} d5 {[%emt 0:03:15]} 15. Bc5 {[%emt 0:06:44]} Re8 {[%emt 0:00:30]} 16. Qe2 {[%emt 0:02:52]} d4 {[%emt 0:02:41]} 17. Qd2 {[%emt 0:07:14]} Qd7 {[%emt 0:14:36]} 18. Rac1 {[%emt 0:02:22]} Nd8 {[%emt 0:04:58]} 19. cxd4 {[%emt 0:05:29]} exd4 {[%emt 0:00:19]} 20. Nh2 {[%emt 0:02:22]} Be6 {[%emt 0:00:21]} 21. Bd1 {[%emt 0:00:42]} a5 {[%emt 0:01:36]} 22. g4 {[%emt 0:00:59]} Nb7 {[%emt 0:00:20]} 23. Rf1 {[%emt 0:03:02]} Ra6 {[%emt 0:01:49]} 24. b3 {[%emt 0:02:37]} b4 {[%emt 0:03:28]} 25. f4 {[%emt 0:04:25]} Qb5 {[%emt 0:03:07]} 26. a4 {[%emt 0:00:50]} bxa3 {[%emt 0:01:16]} 27. Bxa3 c5 {[%emt 0:00:27]} 28. f5 {[%emt 0:02:06]} Bxb3 {[%emt 0:00:55]} 29. g5 {[%emt 0:06:19]} a4 $14 {[%emt 0:03:53]} 30. Ng4 Qd7 {[%emt 0:09:12]} 31. Be2 {[%emt 0:04:10]} Rc6 {[%emt 0:14:25]} 32. Rf3 {[%emt 0:04:09]} gxf5 {[%emt 0:03:46]} 33. exf5 {[%emt 0:00:23]} Bd5 {[%emt 0:00:20]} 34. Rf2 {[%emt 0:01:04]} f6 {[%emt 0:00:27]} 35. Bd1 {[%emt 0:00:19]} Ra6 36. Bf3 {[%emt 0:00:28]} Bxf3 {[%emt 0:01:32]} 37. Rxf3 {[%emt 0:00:01]} Qe7 {[%emt 0:00:08]} 38. Rcf1 {[%emt 0:00:34]} Qe2 {[%emt 0:00:22]} 39. Qc1 {[%emt 0:00:20]} Qa2 {[%emt 0:00:04]} 40. gxf6 {[%emt 0:01:10]} Bf8 41. Nh6+ Kh8 42. Rg3 {[%emt 0:01:31]} 1-0

[Event "XIX Sant Marti Open 2017"]
[Site "Barcelona"]
[Date "2017.07.21"]
[Round "9"]
[White "Vantika Agrawal"]
[Black "Iniyan, P."]
[Result "1-0"]
[ECO "E63"]
[WhiteElo "2230"]
[BlackElo "2380"]
[Annotator "NA"]
[PlyCount "73"]
[EventDate "2017.??.??"]
[EventType "swiss"]
[EventCountry "ESP"]
[SourceTitle "playchess.com"]
[Source "ChessBase"]
[SourceQuality "1"]
[TimeControl "5400+30"]

1. d4 {[%emt 0:00:13]} Nf6 {[%emt 0:00:29]} 2. Nf3 {[%emt 0:00:51]} g6 {[%emt 0:00:08]} 3. g3 {[%emt 0:00:05]} Bg7 {[%emt 0:00:09]} 4. Bg2 {[%emt 0:00:18]} O-O {[%emt 0:00:08]} 5. O-O {[%emt 0:00:06]} d6 {[%emt 0:00:06]} 6. c4 {[%emt 0:00:03]} Nc6 {[%emt 0:00:27]} 7. Nc3 {[%emt 0:00:11]} a6 {[%emt 0:00:06]} 8. Qd3 {[%emt 0:00:20]} Bd7 {[%emt 0:00:08]} 9. d5 {[%emt 0:00:38]} Nb4 {[%emt 0:00:11]} 10. Qd1 {[%emt 0:00:14]} a5 {[%emt 0:00:15]} 11. a3 {[%emt 0:02:42]} Na6 {[%emt 0:00:12]} 12. Be3 {[%emt 0:00:52]} Qc8 {[%emt 0:06:51]} 13. Bd4 {[%emt 0:02:37]} e5 {[%emt 0:09:14]} 14. dxe6 {[%emt 0:03:09]} fxe6 {[%emt 0:00:36]} 15. Ng5 {[%emt 0:19:06]} Bc6 {[%emt 0:08:46]} 16. Bh3 {[%emt 0:12:26]} Bd7 {[%emt 0:00:05]} 17. Bg2 {[%emt 0:00:42]} Nb8 {[%emt 0:05:13]} 18. Nge4 {[%emt 0:14:23]} Nxe4 {[%emt 0:01:27]} 19. Nxe4 {[%emt 0:00:22]} Nc6 {[%emt 0:05:10]} 20. Bxg7 {[%emt 0:00:25]} Kxg7 {[%emt 0:00:07]} 21. Qd2 {[%emt 0:02:38]} a4 {[%emt 0:01:28]} 22. Rad1 {[%emt 0:05:46]} b6 {[%emt 0:01:58]} 23. c5 {[%emt 0:05:15]} bxc5 24. Nxc5 {[%emt 0:00:41]} e5 {[%emt 0:08:02]} 25. Nxd7 {[%emt 0:12:56]} Qxd7 {[%emt 0:00:08]} 26. Qc3 {[%emt 0:00:44]} Ra6 27. Qc4 {[%emt 0:00:50]} Nb8 {[%emt 0:01:38]} 28. f4 {[%emt 0:06:20]} Qe7 {[%emt 0:14:13]} 29. fxe5 {[%emt 0:02:25]} Rf5 {[%emt 0:10:30]} 30. e6 {[%emt 0:01:52]} c6 {[%emt 0:04:41]} 31. Bh3 {[%emt 0:01:49]} Qa7+ {[%emt 0:02:23]} 32. Kh1 {[%emt 0:00:33]} d5 {[%emt 0:00:26]} 33. Qc3+ {[%emt 0:00:39]} d4 {[%emt 0:00:05]} 34. Rxd4 {[%emt 0:00:32]} Rxf1+ {[%emt 0:00:04]} 35. Bxf1 {[%emt 0:00:07]} Kf8 {[%emt 0:00:15]} 36. Rf4+ {[%emt 0:00:46]} Kg8 {[%emt 0:00:01]} 37. Qf6 {[%emt 0:00:23]} 1-0